fUST/lending_fUST_20250826
["ID","MTS","AMOUNT","RATE_DAILY","PERIOD"]
[381373902,1756162243348,-500.0,0.000318,5]
[381373903,1756162243361,-389.23249397,0.000318,5]
[381373904,1756162243371,-151.0,0.000318,7]
[381373905,1756162243382,-151.0,0.000318,7]
[381373906,1756162243392,-151.0,0.000318,7]
[381373907,1756162243402,-151.0,0.000318,7]
[381373908,1756162243411,-151.0,0.000318,7]
[381373909,1756162243421,-25151.03,0.000318,7]
[381373910,1756162243431,-265.7819686,0.000318,7]
[381373911,1756162243441,-213.45675265,0.000318,7]
[381373912,1756162243450,-151.0,0.000318,7]
[381373913,1756162243459,-151.0,0.000318,7]
[381373914,1756162243469,-151.0,0.000318,7]
[381373915,1756162243479,-151.0,0.000318,7]
[381373916,1756162243488,-500.0,0.000318,7]
[381373917,1756162243498,-198.86680626,0.000318,7]
[381373918,1756162243507,-151.0,0.000318,7]
[381373919,1756162243517,-225.80502081,0.000318,7]
[381373920,1756162243526,-198.81399783,0.00032057,2]
[381373921,1756162243536,-151.0,0.00032057,2]
[381373922,1756162243545,-547.0,0.00032057,2]
[381373923,1756162243555,-198.0,0.00032057,2]
[381373924,1756162243565,-151.0,0.00032074,7]
[381373925,1756162243574,-151.0,0.00032074,7]
[381373926,1756162243583,-151.0,0.00032074,7]
[381373927,1756162243593,-151.0,0.00032074,7]
[381373928,1756162243602,-500.0,0.00032074,7]
[381373929,1756162243612,-151.0,0.00032074,7]
[381373930,1756162243621,-198.0,0.00032331,2]
[381373931,1756162243631,-151.0,0.00032338,7]
[381373932,1756162243641,-151.318924,0.00032338,7]
[381373933,1756162243650,-151.0,0.00032338,7]
[381373934,1756162243660,-151.0,0.00032338,7]
[381373935,1756162243669,-151.0,0.00032338,7]
[381373936,1756162243679,-151.0,0.00032338,7]
[381373937,1756162243688,-151.0,0.00032338,7]
[381373938,1756162243697,-151.0,0.00032338,7]
[381373939,1756162243707,-151.0,0.00032338,7]
[381373940,1756162243716,-1000.0,0.00032348,5]
[381373941,1756162243726,-198.0,0.00032348,7]
[381373942,1756162243736,-198.0,0.00032348,7]
[381373943,1756162243746,-151.0,0.00032348,7]
[381373944,1756162243755,-151.0,0.00032348,7]
[381373945,1756162243765,-500.0,0.00032348,7]
[381373946,1756162243774,-198.0,0.00032348,7]
[381373947,1756162243784,-151.0,0.00032622,7]
[381373948,1756162243793,-151.0,0.00032622,7]
[381373949,1756162243803,-500.0,0.00032622,7]
[381373950,1756162243813,-500.0,0.0003272,5]
[381373951,1756162243823,-500.0,0.0003272,5]
[381373952,1756162243833,-500.0,0.0003272,5]
[381373953,1756162243843,-1349.83,0.00032876,120]
[381373954,1756162243853,-1500.0,0.00032896,5]
[381373955,1756162243862,-256.48752778,0.00032896,7]
[381373956,1756162243872,-151.0,0.00032896,7]
[381373957,1756162243882,-500.0,0.00032896,7]
[381373958,1756162243891,-500.5836322,0.00032943,5]
[381373959,1756162243900,-257.23327544,0.00032943,5]
[381373960,1756162243910,-500.0,0.00032943,5]
[381373961,1756162243920,-500.0,0.00032943,5]
[381373962,1756162243930,-500.0,0.00032943,5]
[381373963,1756162243940,-151.0,0.00032943,5]
[381373964,1756162243950,-500.0,0.0003295,5]
[381373965,1756162243961,-572.82,0.00033126,3]
[381373966,1756162243971,-500.0,0.00033133,5]
[381373967,1756162243980,-500.0,0.00033133,5]
[381373968,1756162243990,-12686.2837614,0.00033135,2]
[381373969,1756162244000,-151.0,0.0003317,7]
[381373970,1756162244009,-500.0,0.0003317,7]
[381373971,1756162244019,-1000.0,0.00033268,5]
[381373972,1756162244028,-1000.0,0.00033268,5]
[381373973,1756162244038,-2000.0,0.00033444,5]
[381373974,1756162244048,-307.20213514,0.00033444,7]
[381373975,1756162244062,-192.79786486,0.00033444,7]
[381373976,1756162244072,-1000.0,0.00033681,5]
[381373977,1756162244082,-500.0,0.00033718,7]
[381373978,1756162244091,-1500.0,0.00033816,5]
[381373979,1756162244101,-1466.41483134,0.00033816,5]
[381373980,1756162244110,-724.75327103,0.00033992,5]
[381373981,1756162244120,-500.0,0.00033992,7]
[381373982,1756162244131,-560.0,0.00034173,2]
[381373983,1756162244141,-1500.0,0.00034229,5]
[381373984,1756162244152,-500.0,0.00034266,7]
[381373985,1756162244162,-2000.0,0.00034364,5]
[381373986,1756162244172,-1349.83,0.0003452,120]
[381373987,1756162244182,-500.0,0.0003454,7]
[381373988,1756162244192,-151.765067,0.00034591,2]
[381373989,1756162244201,-2000.0,0.00034777,5]
[381373990,1756162244212,-500.0,0.00034814,7]
[381373991,1756162244221,-2500.0,0.00034912,5]
[381373992,1756162244231,-2053.34429897,0.00035,4]
[381373993,1756162244242,-8172.20490516,0.00035,7]
[381373994,1756162244252,-1220.03792003,0.00035,120]
[381373995,1756162244262,-151.0,0.00035,7]
[381373996,1756162244271,-151.0,0.00035,7]
[381373997,1756162244281,-151.0,0.00035,7]
[381373998,1756162244291,-151.0,0.00035,7]
[381373999,1756162244300,-151.0,0.00035,7]
[381374000,1756162244310,-151.0,0.00035,7]
[381374001,1756162244320,-258.967714,0.00035,7]
[381374002,1756162244329,-158.236421,0.00035,7]
[381374003,1756162244339,-151.0,0.00035,7]
[381374004,1756162244348,-258.967714,0.00035,7]
[381374005,1756162244362,-258.967714,0.00035,7]
[381374006,1756162244372,-258.967714,0.00035,7]
[381374007,1756162244382,-151.529748,0.00035,7]
[381374008,1756162244392,-151.0,0.00035,7]
[381374009,1756162244403,-242.83094597,0.00035088,7]
[381374010,1756162244412,-1664.64416824,0.00035325,5]
[381374011,1756162244422,-792.58905785,0.0003546,5]
[381374012,1756162244434,-151.765067,0.00035521,2]
[381374013,1756162244444,-12686.2837614,0.0003559,3]
[381374014,1756162244454,-160.0,0.0003559,3]
[381374015,1756162244463,-25151.03,0.000356,14]
[381374016,1756162244475,-151.0,0.000356,7]
[381374017,1756162244485,-151.0,0.000356,7]
[381374018,1756162244494,-151.0,0.000356,7]
[381374019,1756162244504,-151.0,0.000356,7]
[381374020,1756162244513,-151.0,0.000356,7]
[381374021,1756162244523,-151.0,0.000356,7]
[381374022,1756162244532,-151.0,0.000356,7]
[381374023,1756162244542,-151.0,0.000356,7]
[381374024,1756162244553,-151.0,0.000356,7]
[381374025,1756162244562,-151.0,0.000356,7]
[381374026,1756162244572,-258.663472,0.000356,7]
[381374027,1756162244581,-151.0,0.000356,7]
[381374028,1756162244589,-151.0,0.000356,7]
[381374029,1756162244599,-151.0,0.000356,7]
[381374030,1756162244608,-151.0,0.000356,7]
[381374031,1756162244618,-151.0,0.000356,7]
[381374032,1756162244628,-244.445241,0.000356,7]
[381374033,1756162244637,-244.445241,0.000356,7]
[381374034,1756162244646,-244.445241,0.000356,7]
[381374035,1756162244655,-244.445241,0.000356,7]
[381374036,1756162244665,-196.456346,0.0003599,30]
[381374037,1756162244674,-245.0,0.0003599,30]
[381374038,1756162244684,-12686.2837614,0.0003599,3]
[381374039,1756162244693,-29251.95122,0.00036,10]
[381374040,1756162244702,-151.0,0.00036,30]
[381374041,1756162244712,-151.0,0.00036,30]
[381374042,1756162244722,-151.0,0.00036,30]
[381374043,1756162244732,-151.0,0.00036,30]
[381374044,1756162244742,-151.0,0.00036,30]
[381374045,1756162244752,-160.0,0.00036,10]
[381374046,1756162244763,-417.15472785,0.00036,10]
[381374047,1756162244774,-529.29072822,0.00036,10]
[381374048,1756162244785,-1349.83,0.00036164,120]
[381374049,1756162244797,-780.0,0.00036184,7]
[381374050,1756162244807,-151.0,0.0003633,30]
[381374051,1756162244816,-151.0,0.0003633,30]
[381374052,1756162244827,-270.177408,0.0003633,30]
[381374053,1756162244837,-10735.75913093,0.00036331,2]
[381374054,1756162244846,-151.0,0.00036338,30]
[381374055,1756162244856,-151.0,0.00036338,30]
[381374056,1756162244865,-151.0,0.00036338,30]
[381374057,1756162244874,-189.558416,0.00036338,30]
[381374058,1756162244883,-151.0,0.00036338,30]
[381374059,1756162244893,-151.0,0.00036338,30]
[381374060,1756162244903,-151.0,0.00036338,30]
[381374061,1756162244915,-151.0,0.00036338,30]
[381374062,1756162244925,-151.0,0.0003634,30]
[381374063,1756162244936,-151.0,0.0003634,30]
[381374064,1756162244945,-151.000001,0.0003634,30]
[381374065,1756162244954,-151.0,0.0003634,30]
[381374066,1756162244964,-151.0,0.0003634,30]
[381374067,1756162244973,-151.0,0.0003634,30]
[381374068,1756162244982,-151.0,0.0003634,30]
[381374069,1756162244991,-151.0,0.0003634,30]
[381374070,1756162245001,-151.0,0.0003634,30]
[381374071,1756162245010,-242.025526,0.0003634,30]
[381374072,1756162245020,-780.0,0.00036458,7]
[381374073,1756162245029,-780.0,0.00036732,7]
[381374074,1756162245038,-488.0,0.00036764,2]
[381374075,1756162245048,-453.0,0.00036766,120]
[381374076,1756162245057,-780.0,0.00037005,7]
[381374077,1756162245066,-1182.788956,0.00037191,2]
[381374078,1756162245076,-780.0,0.00037279,7]
[381374079,1756162245086,-151.765067,0.00037525,20]
[381374080,1756162245095,-780.0,0.00037553,7]
[381374081,1756162245104,-151.0,0.00037755,30]
[381374082,1756162245115,-151.0,0.00037755,30]
[381374083,1756162245124,-151.0,0.00037755,30]
[381374084,1756162245133,-1716.65479435,0.00037755,2]
[381374085,1756162245143,-3858.61081399,0.00037755,2]
[381374086,1756162245152,-1663.53124137,0.00037755,2]
[381374087,1756162245161,-1349.83,0.00037808,120]
[381374088,1756162245171,-780.0,0.00037827,7]
[381374089,1756162245181,-782.83094597,0.00038101,7]
[381374090,1756162245191,-321.8774329,0.00038142,30]
[381374091,1756162245202,-153.0,0.00038142,30]
[381374092,1756162245211,-500.0,0.00038355,7]
[381374093,1756162245223,-151.0,0.00038356,30]
[381374094,1756162245233,-151.0,0.00038356,30]
[381374095,1756162245242,-151.0,0.00038356,15]
[381374096,1756162245253,-151.0,0.00038356,30]
[381374097,1756162245263,-151.0,0.00038356,30]
[381374098,1756162245275,-500.0,0.00038356,14]
[381374099,1756162245285,-12686.2837614,0.0003839,3]
[381374100,1756162245294,-151.0,0.0003839,30]
[381374101,1756162245303,-151.0,0.0003839,30]
[381374102,1756162245313,-258.967714,0.0003839,30]
[381374103,1756162245323,-151.0,0.0003839,30]
[381374104,1756162245333,-258.967714,0.0003839,30]
[381374105,1756162245342,-258.967714,0.0003839,30]
[381374106,1756162245351,-258.967714,0.0003839,30]
[381374107,1756162245365,-151.0,0.0003839,30]
[381374108,1756162245375,-263.9158891,0.00038398,2]
[381374109,1756162245384,-25151.03,0.000384,14]
[381374110,1756162245394,-773.5596454,0.00038493,30]
[381374111,1756162245405,-500.0,0.0003863,14]
[381374112,1756162245415,-168.0,0.00038711,2]
[381374113,1756162245425,-156.15615978,0.00038778,14]
[381374114,1756162245436,-500.0,0.000388,30]
[381374115,1756162245445,-500.0,0.00038904,14]
[381374116,1756162245455,-973.0,0.00038941,2]
[381374117,1756162245465,-409.0,0.00038941,2]
[381374118,1756162245474,-637.0,0.00038941,2]
[381374119,1756162245484,-2155.0,0.00038941,2]
[381374120,1756162245494,-268.505,0.00038941,2]
[381374121,1756162245503,-12686.2837614,0.0003899,3]
[381374122,1756162245513,-610.27,0.00039,30]
[381374123,1756162245523,-12324.3,0.00039,30]
[381374124,1756162245534,-1297.78,0.00039,30]
[381374125,1756162245545,-151.0,0.00039,30]
[381374126,1756162245554,-25198.31,0.00039,30]
[381374127,1756162245563,-151.0,0.00039,30]
[381374128,1756162245573,-151.0,0.00039,30]
[381374129,1756162245582,-151.0,0.00039,30]
[381374130,1756162245592,-151.0,0.00039,30]
[381374131,1756162245602,-151.0,0.00039,30]
[381374132,1756162245611,-151.0,0.00039,30]
[381374133,1756162245620,-151.0,0.00039,30]
[381374134,1756162245631,-151.0,0.00039,30]
[381374135,1756162245640,-160.0,0.00039,30]
[381374136,1756162245649,-151.0,0.00039,30]
[381374137,1756162245659,-151.0,0.00039,30]
[381374138,1756162245669,-151.0,0.00039,30]
[381374139,1756162245679,-158.753971,0.00039,30]
[381374140,1756162245688,-244.445241,0.00039,30]
[381374141,1756162245698,-244.445241,0.00039,30]
[381374142,1756162245707,-244.445241,0.00039,30]
[381374143,1756162245716,-244.445241,0.00039,30]
[381374144,1756162245726,-417.15472785,0.00039,30]
[381374145,1756162245736,-500.0,0.00039073,31]
[381374146,1756162245746,-500.0,0.00039177,7]
[381374147,1756162245757,-500.0,0.00039178,14]
[381374149,1756162245953,-500.0,0.00039347,32]
[381374150,1756162245963,-1349.83,0.00039452,120]
[381374151,1756162245974,-500.0,0.00039452,14]
[381374152,1756162245984,-354.5962117,0.00039452,30]
[381374153,1756162245995,-151.765067,0.00039455,20]
[381374154,1756162246005,-172.490142,0.00039455,20]
[381374155,1756162246015,-3688.99226597,0.000395,14]
[381374156,1756162246460,-1835.7,0.000395,14]
[381374158,1756162246535,199.0,0.00026749,20]
[381374159,1756162247216,-160.0,0.00031777,2]
[381374160,1756162247225,-471.59,0.0003179,10]
[381374161,1756162247235,-151.0,0.00035,7]
[381374162,1756162247245,-151.0,0.00035,7]
[381374163,1756162247255,-151.0,0.0003839,30]
[381374164,1756162247265,-151.0,0.0003839,30]
[381374165,1756162247275,-4023.85773403,0.000395,14]
[381374166,1756162247284,-500.0,0.00039621,33]
[381374167,1756162247295,-151.0,0.00039621,30]
[381374168,1756162247305,-151.0,0.00039621,30]
[381374169,1756162247314,-151.0,0.00039621,30]
[381374170,1756162247324,-151.0,0.00039621,30]
[381374171,1756162247334,-151.0,0.00039621,30]
[381374172,1756162247345,-161.0488651,0.00039671,30]
[381374173,1756162247356,-322.0977302,0.00039671,30]
[381374174,1756162247366,-160.2004544,0.00039671,30]
[381374175,1756162247376,-500.0,0.00039726,14]
[381374176,1756162247386,-500.0,0.00039895,34]
[381374177,1756162247395,-151.0,0.00039895,30]
[381374178,1756162247406,-151.0,0.00039895,30]
[381374179,1756162247415,-151.0,0.0003999,30]
[381374180,1756162247425,-151.0,0.0003999,30]
[381374181,1756162247436,-151.0,0.0003999,30]
[381374182,1756162247447,-151.0,0.0003999,30]
[381374183,1756162247456,-151.0,0.0003999,30]
[381374184,1756162247465,-151.0,0.0003999,30]
[381374185,1756162247475,-151.0,0.0003999,30]
[381374186,1756162247485,-500.0,0.00039999,7]
[381374187,1756162247494,-335.41,0.0004,7]
[381374188,1756162247503,-702.79521627,0.0004,10]
[381374189,1756162247528,-2193.98607142,0.0004,10]
[381374190,1756162247537,-500.0,0.0004,14]
[381374191,1756162247547,-500.0,0.00040169,35]
[381374192,1756162247557,-6111.02162482,0.0004019,3]
[381374193,1756162247570,-422.748628,0.0004019,3]
[381374194,1756162247583,-6152.51350858,0.0004019,3]
[381374195,1756162247592,-2238.94077454,0.000402,14]
[381374196,1756162247603,-14334.1209,0.000402,14]
[381374198,1756162426946,165.984723,0.00013699,2]
[381374204,1756162794069,10000.01,0.00031,2]
[381374205,1756162794097,10000.01,0.00031,2]
[381374206,1756162794137,10000.01,0.00031,2]
[381374207,1756162794162,10000.01,0.00031,2]
[381374208,1756162794184,9999.96,0.00031,2]
[381374209,1756162810252,0.05,0.00031,2]
[381374210,1756162810277,4999.95,0.00031,2]
[381374211,1756162825576,5000.0,0.00031,2]
[381374212,1756162833379,0.06,0.00031,2]
[381374213,1756162834985,-500.0,0.00031,2]
[381374214,1756162836722,-500.0,0.00031,2]
[381374215,1756162839048,-437.61238891,0.00031,2]
[381374216,1756162863314,441.53543859,0.00031,2]
[381374219,1756163022789,558.46456141,0.00031,2]
[381374220,1756163135119,-1216.81044774,0.00031,2]
[381374221,1756163135140,-177.5520083,0.000313,2]
[381374222,1756163135161,-287.06260194,0.000314,2]
[381374223,1756163135182,-1030.5,0.000315,120]
[381374224,1756163135204,-202.44124823,0.00031583,3]
[381374225,1756163142949,-160.0,0.00029405,2]
[381374226,1756163144523,-60.0,0.00029405,2]
[381374227,1756163234135,-294.35695906,0.000314,2]
[381374228,1756163234160,-84.96810913,0.00031574,120]
[381374229,1756163235087,-114.03189087,0.00031574,120]
[381374230,1756163235108,-199.0,0.00031574,120]
[381374231,1756163235131,-400.0,0.00031583,2]
[381374232,1756163235151,-1600.0,0.00031583,3]
[381374233,1756163235171,-300.0,0.00031584,3]
[381374234,1756163235191,-300.0,0.00031584,3]
[381374235,1756163235211,-106.46573975,0.00031584,3]
[381374236,1756163357537,-2276.4445132,0.00030613,33]
[381374237,1756163357561,-193.53426025,0.00031584,3]
[381374238,1756163357583,-400.0,0.00031584,3]
[381374239,1756163357606,-400.0,0.00031584,2]
[381374240,1756163357630,-689.85599473,0.00031585,2]
[381374307,1756163432694,-300.0,0.00031584,2]
[381374308,1756163432704,-196.2379727,0.00031585,2]
[381374309,1756163432714,-868.312121,0.000316,7]
[381374311,1756163432728,-216.04034502,0.0003166,2]
[381374312,1756163432737,-199.0,0.00031674,120]
[381374313,1756163432747,-160.0,0.00031759,2]
[381374314,1756163432756,-160.0,0.00031759,2]
[381374315,1756163432766,-160.0,0.00031759,2]
[381374316,1756163432776,-217.12848614,0.00031759,2]
[381374317,1756163432785,-500.0,0.00031783,2]
[381374318,1756163432795,-500.0,0.00031783,2]
[381374319,1756163432806,-269.21938854,0.00031783,2]
[381374326,1756163438047,-196.2379727,0.0003166,2]
[381374327,1756163438057,-230.78061146,0.00031783,2]
[381374328,1756163438074,-215.27128784,0.00031783,2]
[381374329,1756163438099,-500.0,0.00031783,2]
[381374330,1756163438110,-535.34867956,0.00031783,2]
[381374331,1756163438122,-500.0,0.00031783,2]
[381374332,1756163438131,-244.36213114,0.00031783,2]
[381374333,1756163438141,-500.0,0.00031783,2]
[381374334,1756163438153,-500.0,0.00031783,2]
[381374335,1756163438169,-500.0,0.00031783,2]
[381374336,1756163438178,-175.3020222,0.00031783,2]
[381374337,1756163438188,-500.0,0.00031783,2]
[381374338,1756163438198,-500.0,0.00031783,2]
[381374339,1756163438207,-457.22060381,0.00031783,2]
[381374340,1756163438218,-500.0,0.00031783,2]
[381374341,1756163438228,-484.40021588,0.00031783,2]
[381374342,1756163438240,-500.0,0.00031783,2]
[381374343,1756163438249,-193.85115002,0.00031783,2]
[381374344,1756163438259,-151.0,0.00031783,2]
[381374345,1756163438269,-50000.0,0.00031783,2]
[381374346,1756163438278,-9699.5362,0.00031784,2]
[381374347,1756163438287,-1000.0,0.00031784,2]
[381374348,1756163438297,-1000.0,0.00031784,2]
[381374349,1756163438307,-1000.0,0.00031784,2]
[381374350,1756163438317,-1000.0,0.00031784,2]
[381374351,1756163438327,-1000.0,0.00031784,2]
[381374353,1756163438337,-1000.0,0.00031784,2]
[381374355,1756163438346,-1000.0,0.00031784,2]
[381374357,1756163438355,-1000.0,0.00031784,2]
[381374359,1756163438366,-1000.0,0.00031784,2]
[381374361,1756163438375,-504.84,0.00031784,2]
[381374363,1756163438385,-300.0,0.00032418,20]
[381374365,1756163438395,-300.0,0.00032418,20]
[381374367,1756163438405,-300.0,0.00032418,20]
[381374369,1756163438415,-1398.0,0.00033984,3]
[381374371,1756163438424,-3000.0,0.00037521,7]
[381374373,1756163438434,-295.61,0.000376,7]
[381374375,1756163438443,-2164.2590656,0.00038037,2]
[381374377,1756163438452,-199.0,0.0003829,30]
[381374379,1756163438462,-500.0,0.00038355,7]
[381374380,1756163438474,-500.0,0.00038356,14]
[381374381,1756163438483,-307.0,0.00038356,30]
[381374382,1756163438493,-500.0,0.0003863,14]
[381374383,1756163438503,-151.0,0.00038637,10]
[381374384,1756163438513,-9594.44533623,0.00038647,3]
[381374385,1756163438522,-160.0,0.00038647,3]
[381374386,1756163438532,-217.12848614,0.00038647,3]
[381374387,1756163438541,-232.4766599,0.00038647,3]
[381374388,1756163438552,-973.0,0.00038657,2]
[381374389,1756163438564,-2155.0,0.00038657,2]
[381374390,1756163438574,-637.0,0.00038657,2]
[381374391,1756163438584,-409.0,0.00038657,2]
[381374392,1756163438595,-4000.0,0.00038796,7]
[381374393,1756163438606,-217.12848614,0.00038796,7]
[381374394,1756163438616,-500.0,0.00038904,14]
[381374395,1756163438626,-198.0,0.00038911,10]
[381374396,1756163438636,-500.0,0.00039177,7]
[381374397,1756163438646,-500.0,0.00039178,14]
[381374398,1756163438656,-482.9114719,0.00039432,2]
[381374399,1756163438666,-301.06881551,0.00039452,14]
[381374400,1756163438676,-306.0,0.00039452,30]
[381374401,1756163438686,-1163.2928866,0.00039452,30]
[381374402,1756163438695,-1068.62,0.00039669,120]
[381374403,1756163438704,-216.04034502,0.0003967,3]
[381374404,1756163438715,-500.0,0.0003968,30]
[381374405,1756163438728,-500.0,0.0003968,30]
[381374406,1756163438738,-500.0,0.0003968,30]
[381374407,1756163438747,-500.0,0.0003968,30]
[381374408,1756163438757,-500.0,0.0003968,30]
[381374409,1756163438766,-500.0,0.0003968,30]
[381374410,1756163438775,-500.0,0.0003968,30]
[381374411,1756163438784,-181.76,0.00039774,3]
[381374412,1756163438793,-545.3,0.00039775,3]
[381374413,1756163438803,-19188.8906725,0.00039775,3]
[381374414,1756163438813,-500.0,0.00039784,31]
[381374415,1756163438823,-151.0,0.00039784,31]
[381374416,1756163438832,-355.85581131,0.00039784,31]
[381374417,1756163438841,-500.0,0.00039784,31]
[381374418,1756163438851,-500.0,0.00039784,31]
[381374419,1756163438860,-500.0,0.00039784,31]
[381374420,1756163438869,-500.0,0.00039784,31]
[381374421,1756163438878,-500.0,0.00039784,31]
[381374422,1756163438888,-500.0,0.00039784,31]
[381374423,1756163438898,-500.0,0.00039784,31]
[381374424,1756163438908,-223.81799173,0.00039784,31]
[381374425,1756163438917,-500.0,0.00039784,31]
[381374426,1756163438926,-500.0,0.00039784,31]
[381374427,1756163438936,-300.0,0.00039784,31]
[381374428,1756163438945,-76755.5626898,0.00039785,3]
[381374429,1756163438954,-151.0,0.00039795,30]
[381374430,1756163438964,-151.0,0.00039795,30]
[381374431,1756163438974,-151.0,0.00039795,30]
[381374432,1756163438983,-151.0,0.00039795,30]
[381374433,1756163438992,-151.0,0.00039795,30]
[381374434,1756163439002,-151.0,0.00039795,30]
[381374435,1756163439012,-151.0,0.00039795,30]
[381374436,1756163439021,-151.0,0.00039795,30]
[381374437,1756163439031,-214.793954,0.00039795,30]
[381374438,1756163439040,-151.0,0.00039795,14]
[381374439,1756163439050,-151.0,0.00039795,30]
[381374440,1756163439059,-151.0,0.00039795,30]
[381374441,1756163439069,-151.0,0.00039795,30]
[381374442,1756163439078,-151.0,0.00039795,30]
[381374443,1756163439087,-151.0,0.00039795,30]
[381374444,1756163439097,-151.0,0.00039795,30]
[381374445,1756163439106,-151.0,0.00039795,30]
[381374446,1756163439115,-151.0,0.00039795,30]
[381374447,1756163439125,-151.0,0.00039795,30]
[381374448,1756163439134,-151.0,0.00039795,30]
[381374449,1756163439143,-151.0,0.00039795,30]
[381374450,1756163439153,-151.0,0.00039795,30]
[381374451,1756163439162,-370000.0,0.00039795,2]
[381374452,1756163439172,-4327.23248145,0.00039899,2]
[381374453,1756163439181,-500.0,0.00039999,7]
[381374454,1756163439190,-500.0,0.00040058,31]
[381374455,1756163439199,-199.0,0.00040311,30]
[381374456,1756163439209,-160.0,0.00040328,2]
[381374457,1756163439224,-500.0,0.00040332,31]
[381374458,1756163439238,-232.4766599,0.00040343,2]
[381374459,1756163439252,-295.61,0.000404,7]
[381374460,1756163439264,-4327.23248144,0.00040584,2]
[381374461,1756163439277,-500.0,0.00040606,31]
[381374462,1756163439290,-160.0,0.00040701,3]
[381374463,1756163439303,-1000.0,0.000408,90]
[381374464,1756163439316,-500.0,0.00040821,7]
[381374465,1756163439329,-500.0,0.0004088,31]
[381374466,1756163439342,-1000.0,0.00040995,2]
[381374467,1756163439356,-353.31934,0.00041,120]
[381374468,1756163439370,-1763.0,0.00041016,14]
[381374469,1756163439383,-1763.0,0.00041016,14]
[381374470,1756163439395,-1763.0,0.00041016,14]
[381374471,1756163439408,-1404.41524019,0.00041016,14]
[381374472,1756163439420,-9594.44533623,0.00041063,3]
[381374473,1756163439434,-500.0,0.00041073,5]
[381374474,1756163439446,-500.0,0.00041073,5]
[381374475,1756163439459,-501.0583439,0.00041073,5]
[381374476,1756163439471,-500.0,0.00041073,5]
[381374477,1756163439483,-500.0,0.00041073,5]
[381374478,1756163439495,-500.0,0.00041073,2]
[381374479,1756163439508,-500.0,0.00041073,5]
[381374480,1756163439521,-500.0,0.00041073,5]
[381374481,1756163439534,-500.0,0.00041073,5]
[381374482,1756163439548,-500.0,0.00041073,5]
[381374483,1756163439562,-500.0,0.00041073,5]
[381374484,1756163439576,-500.0,0.00041073,5]
[381374485,1756163439589,-500.0,0.00041073,5]
[381374486,1756163439600,-500.0,0.00041073,5]
[381374487,1756163439611,-500.0,0.00041073,5]
[381374488,1756163439622,-500.0,0.00041073,5]
[381374489,1756163439635,-500.0,0.00041073,5]
[381374490,1756163439650,-500.0,0.00041073,5]
[381374491,1756163439664,-500.0,0.00041073,5]
[381374492,1756163439675,-500.0,0.00041073,5]
[381374493,1756163439687,-500.0,0.00041073,5]
[381374494,1756163439699,-500.0,0.00041073,5]
[381374495,1756163439713,-500.0,0.00041073,5]
[381374496,1756163439727,-19188.8906725,0.00041075,3]
[381374497,1756163439738,-7596.26367185,0.0004108,30]
[381374498,1756163439748,-151.0,0.00041085,30]